bitfinex/quotes_BTCUSD_20240611
["timestamp","ask_amount","ask_price","bid_price","bid_amount"]
[1718064002118,0.98819986,69530.0,69529.0,0.1]
[1718064002730,1.03126843,69530.0,69529.0,0.1]
[1718064002915,1.63126843,69530.0,69529.0,0.1]
[1718064003121,1.63126706,69530.0,69529.0,0.1]
[1718064004170,1.53126706,69530.0,69529.0,0.1]
[1718064004627,1.46612822,69530.0,69529.0,0.1]
[1718064004835,1.93377081,69530.0,69529.0,0.1]
[1718064005032,1.07290804,69530.0,69529.0,0.1]
[1718064005211,0.77419986,69530.0,69529.0,0.1]
[1718064005646,0.75419986,69530.0,69529.0,0.1]
[1718064006250,0.77419986,69530.0,69529.0,0.1]
[1718064006772,0.75419986,69530.0,69529.0,0.1]
[1718064006986,0.77419986,69530.0,69529.0,0.1]
[1718064007395,1.00269986,69530.0,69529.0,0.1]
[1718064007815,0.90269986,69530.0,69529.0,0.1]
[1718064008633,0.67419986,69530.0,69529.0,0.1]
[1718064009170,0.65419986,69530.0,69529.0,0.3266]
[1718064009368,0.71699986,69530.0,69529.0,0.3266]
[1718064009818,0.65419986,69530.0,69529.0,0.3266]
[1718064010021,0.71699986,69530.0,69529.0,0.3266]
[1718064011265,0.96779986,69530.0,69529.0,0.1]
[1718064011459,0.99328899,69530.0,69529.0,0.1]
[1718064011750,1.16779986,69530.0,69529.0,0.1]
[1718064011958,1.25540832,69530.0,69529.0,0.1]
[1718064012177,1.60950108,69530.0,69529.0,0.1]
[1718064012386,1.71716909,69530.0,69529.0,0.1]
[1718064012600,1.86148902,69530.0,69529.0,0.1]
[1718064012811,1.76148902,69530.0,69529.0,0.1]
[1718064013021,1.6762007,69530.0,69529.0,0.1]
[1718064013228,0.32,69529.0,69528.0,0.100086]
[1718064013439,1.50910108,69529.0,69528.0,0.100086]
[1718064013640,1.65342101,69529.0,69528.0,0.100086]
[1718064014235,1.717585,69529.0,69528.0,0.100086]
[1718064014437,1.717585,69529.0,69499.0,0.152246]
[1718064014438,0.92,69519.0,69502.0,0.43295979]
[1718064014591,1.13699986,69519.0,69509.0,0.0778]
[1718064014990,1.45575813,69519.0,69509.0,0.0778]
[1718064015170,1.13699986,69519.0,69509.0,0.0778]
[1718064015577,1.33699986,69519.0,69509.0,0.0778]
[1718064015784,1.07419986,69519.0,69509.0,0.0778]
[1718064016001,0.20987993,69519.0,69509.0,0.1406]
[1718064016212,0.20987993,69519.0,69518.0,0.229046]
[1718064017683,0.20987993,69519.0,69518.0,0.24274362]
[1718064019278,0.37419986,69519.0,69518.0,0.01464362]
[1718064019639,0.37419986,69519.0,69518.0,0.000946]
[1718064021587,0.46511584,69519.0,69518.0,0.000946]
[1718064021831,0.37419986,69519.0,69518.0,0.000946]
[1718064029035,0.57419986,69519.0,69518.0,0.000946]
[1718064029553,0.37419986,69519.0,69518.0,0.000946]
[1718064029930,0.43699986,69519.0,69518.0,0.000946]
[1718064030137,0.37419986,69519.0,69518.0,0.000946]
[1718064031116,0.37419986,69519.0,69518.0,0.100946]
[1718064032165,0.35419986,69519.0,69518.0,0.100946]
[1718064032363,0.37419986,69519.0,69518.0,0.100946]
[1718064032602,0.37419986,69519.0,69518.0,0.11483087]
[1718064033382,0.35419986,69519.0,69518.0,0.11483087]
[1718064033775,0.37419986,69519.0,69518.0,0.11483087]
[1718064040263,0.27419986,69519.0,69518.0,0.11483087]
[1718064044702,0.27419986,69519.0,69518.0,0.26402759]
[1718064045112,0.17419986,69519.0,69518.0,0.26402759]
[1718064046014,0.15419986,69519.0,69518.0,0.26402759]
[1718064046827,0.17419986,69519.0,69518.0,0.26402759]
[1718064049769,0.07419986,69519.0,69518.0,0.26402759]
[1718064050189,0.64958986,69519.0,69518.0,0.26402759]
[1718064050819,0.89278986,69519.0,69518.0,0.26402759]
[1718064050996,0.89278986,69519.0,69518.0,0.25014272]
[1718064051196,0.89278986,69519.0,69518.0,0.100946]
[1718064051402,0.89278986,69519.0,69518.0,0.25014623]
[1718064051814,0.89278986,69519.0,69518.0,0.26457311]
[1718064052034,0.89278986,69519.0,69518.0,0.2645728]
[1718064055013,0.93710979,69519.0,69518.0,0.2645728]
[1718064055390,0.93710979,69519.0,69518.0,0.25014592]
[1718064056253,0.98017019,69519.0,69518.0,0.25014592]
[1718064056400,0.93710979,69519.0,69518.0,0.25014592]
[1718064056582,0.98017019,69519.0,69518.0,0.25014592]
[1718064056788,0.69390979,69519.0,69518.0,0.25014592]
[1718064057221,0.69390979,69519.0,69518.0,0.26459411]
[1718064057440,0.73704682,69519.0,69518.0,0.26459411]
[1718064058112,0.63704682,69519.0,69518.0,0.26459411]
[1718064058329,0.59390979,69519.0,69518.0,0.26459411]
[1718064059578,0.6370487,69519.0,69518.0,0.26459411]
[1718064060051,0.59390979,69519.0,69518.0,0.26459411]
[1718064061586,0.49390979,69519.0,69518.0,0.26459411]
[1718064061819,0.5585004,69519.0,69518.0,0.26459411]
[1718064063181,0.5585004,69519.0,69518.0,0.25014592]
[1718064063609,0.5585004,69519.0,69518.0,0.26459411]
[1718064064266,0.49390979,69519.0,69518.0,0.26459411]
[1718064064485,0.55863848,69519.0,69518.0,0.26459411]
[1718064065121,0.45863848,69519.0,69518.0,0.26459411]
[1718064066771,0.39390979,69519.0,69518.0,0.26459411]
[1718064067430,0.29390979,69519.0,69518.0,0.26459411]
[1718064069747,0.35864498,69519.0,69518.0,0.26459411]
[1718064070129,0.19390979,69519.0,69518.0,0.26459411]
[1718064072165,0.25864783,69519.0,69518.0,0.26459411]
[1718064072568,0.19390979,69519.0,69518.0,0.26459411]
[1718064073031,0.04958986,69519.0,69518.0,1.04663111]
[1718064073242,0.04958986,69519.0,69518.0,1.56195104]
[1718064073452,0.00086,69530.0,69529.0,0.03]
[1718064073676,0.00086,69530.0,69529.0,1.15159403]
[1718064073883,0.00086,69530.0,69529.0,1.41797607]
[1718064074553,0.00086,69530.0,69529.0,1.64737607]
[1718064074974,0.00086,69530.0,69529.0,1.63737607]
[1718064075380,0.00086,69530.0,69529.0,1.64737607]
[1718064075585,0.00086,69530.0,69529.0,1.63737607]
[1718064075791,0.00086,69530.0,69529.0,1.64737607]
[1718064076349,0.00086,69530.0,69529.0,1.47457607]
[1718064076582,0.00086,69530.0,69529.0,1.44425213]
[1718064078197,0.00086,69530.0,69529.0,1.45425213]
[1718064078440,0.00086,69530.0,69529.0,1.30505221]
[1718064078985,0.00086,69530.0,69529.0,1.29505221]
[1718064079602,0.00086,69530.0,69529.0,1.30505221]
[1718064079780,0.00086,69530.0,69529.0,1.29505221]
[1718064079986,0.00086,69530.0,69529.0,1.30505221]
[1718064081468,0.00086,69530.0,69529.0,1.29505221]
[1718064081813,0.00086,69530.0,69529.0,1.08793228]
[1718064082191,0.00086,69530.0,69529.0,1.15073228]
[1718064082792,0.00086,69530.0,69529.0,1.16801906]
[1718064083201,0.00086,69530.0,69529.0,1.17801906]
[1718064083338,0.00086,69530.0,69529.0,1.16801906]
[1718064083750,0.00086,69530.0,69529.0,1.17801906]
[1718064084370,0.00086,69530.0,69529.0,1.16801906]
[1718064086218,0.00086,69530.0,69529.0,1.17801906]
[1718064087267,0.00086,69530.0,69529.0,1.16801906]
[1718064087684,0.00086,69530.0,69529.0,1.60998799]
[1718064088848,0.00086,69530.0,69529.0,1.53718799]
[1718064089176,0.00086,69530.0,69529.0,1.54718799]
[1718064089529,0.00086,69530.0,69529.0,1.60998799]
[1718064090830,0.00086,69530.0,69529.0,1.53718799]
[1718064091051,0.00086,69530.0,69529.0,1.60998799]
[1718064093581,0.00086,69530.0,69529.0,1.70998799]
[1718064094448,0.00086,69530.0,69529.0,1.75877707]
[1718064096311,0.00086,69530.0,69529.0,1.65877707]
[1718064097447,0.00086,69530.0,69529.0,1.60998799]
[1718064100254,0.00086,69530.0,69529.0,1.53718799]
[1718064100463,0.00086,69530.0,69529.0,1.59998799]
[1718064100871,0.00086,69530.0,69529.0,1.60998799]
[1718064101516,0.00086,69530.0,69529.0,1.59998799]
[1718064105015,0.00086,69530.0,69529.0,1.16346806]
[1718064105238,0.00086,69530.0,69529.0,1.22626806]
[1718064106832,0.00086,69530.0,69529.0,1.16346806]
[1718064107230,0.00086,69530.0,69529.0,1.22626806]
[1718064107625,0.00086,69530.0,69529.0,1.16346806]
[1718064107831,0.00086,69530.0,69529.0,1.22626806]
[1718064109004,0.00086,69530.0,69529.0,1.16346806]
[1718064109223,0.00086,69530.0,69529.0,1.22626806]
[1718064115287,0.00086,69530.0,69529.0,1.16346806]
[1718064115495,0.00086,69530.0,69529.0,1.22626806]
[1718064115701,0.00086,69530.0,69529.0,1.16346806]
[1718064115946,0.00086,69530.0,69529.0,1.22626806]
[1718064117972,0.00086,69530.0,69529.0,1.16346806]
[1718064118178,0.00086,69530.0,69529.0,1.22626806]
[1718064118383,0.00086,69530.0,69529.0,1.20627246]
[1718064118572,0.00086,69530.0,69529.0,1.26907246]
[1718064118970,0.00086,69530.0,69529.0,1.20627246]
[1718064119175,0.00086,69530.0,69529.0,1.31187686]
[1718064120318,0.00086,69530.0,69529.0,1.45619679]
[1718064120521,0.00086,69530.0,69529.0,1.62108799]
[1718064120886,0.00086,69530.0,69529.0,1.728099]
[1718064123872,0.00086,69530.0,69529.0,1.6448833]
[1718064124028,0.00086,69530.0,69529.0,1.5720833]
[1718064124239,0.00086,69530.0,69529.0,1.6348833]
[1718064124442,0.00086,69530.0,69529.0,1.61108799]
[1718064124884,0.00086,69530.0,69529.0,1.62108799]
[1718064125296,0.00086,69530.0,69529.0,1.54828799]
[1718064125647,0.00086,69530.0,69529.0,1.61108799]
[1718064125987,0.00086,69530.0,69529.0,1.71852255]
[1718064126682,0.00086,69530.0,69529.0,1.61108799]
[1718064126833,0.00086,69530.0,69529.0,1.62108799]
[1718064128409,0.00086,69530.0,69529.0,1.61108799]
[1718064128664,0.00086,69530.0,69529.0,1.45238799]
[1718064128884,0.00086,69530.0,69529.0,1.22626806]
[1718064130489,0.00086,69530.0,69529.0,1.16346806]
[1718064130711,0.00086,69530.0,69529.0,1.22626806]
[1718064133903,0.00086,69530.0,69529.0,1.16346806]
[1718064134142,0.00086,69530.0,69529.0,1.22626806]
[1718064135572,0.07636,69530.0,69529.0,1.16346806]
[1718064135817,0.07636,69530.0,69529.0,1.22626806]
[1718064136276,0.07636,69530.0,69529.0,1.16346806]
[1718064136515,0.07636,69530.0,69529.0,1.22626806]
[1718064137402,0.07636,69530.0,69529.0,1.31222878]
[1718064144128,0.00086,69530.0,69529.0,1.31222878]
[1718064145473,0.00086,69530.0,69529.0,1.31223867]
[1718064146287,0.00086,69530.0,69529.0,1.22626806]
[1718064146716,0.00086,69530.0,69529.0,1.16346806]
[1718064146929,0.00086,69530.0,69529.0,1.31224227]
[1718064147133,0.00086,69530.0,69529.0,1.31224268]
[1718064147350,0.00086,69530.0,69529.0,1.16346806]
[1718064147580,0.00086,69530.0,69529.0,1.22626806]
[1718064148645,0.00086,69530.0,69529.0,0.85581906]
[1718064148854,0.08366,69530.0,69529.0,0.56817006]
[1718064149063,0.24736,69530.0,69529.0,0.56817006]
[1718064149512,0.24736,69530.0,69529.0,0.55088328]
[1718064152204,0.24736,69530.0,69529.0,0.26323428]
[1718064153212,0.24736,69530.0,69529.0,0.28475177]
[1718064154827,0.24736,69530.0,69529.0,0.26323428]
[1718064155059,0.24736,69530.0,69529.0,0.28475177]
[1718064157731,0.24736,69530.0,69529.0,0.26323428]
[1718064159442,0.24736,69530.0,69529.0,0.36323428]
[1718064160078,0.24736,69530.0,69529.0,0.42603428]
[1718064160289,0.00086,69530.0,69529.0,0.44603428]
[1718064160493,0.00086,69530.0,69529.0,0.99160077]
[1718064160712,0.00086,69530.0,69529.0,1.41205221]
[1718064161140,0.00086,69530.0,69529.0,1.39220601]
[1718064161357,0.00086,69530.0,69529.0,1.45500601]
[1718064162453,0.00861,69537.0,69535.0,0.431436]
[1718064162682,0.00861,69537.0,69535.0,0.614236]
[1718064162892,0.00861,69537.0,69535.0,0.63276213]
[1718064166551,0.00861,69537.0,69535.0,0.28233813]
[1718064166724,0.2502,69536.0,69535.0,0.34513813]
[1718064167106,0.2502,69536.0,69535.0,0.26233813]
[1718064167330,0.2502,69536.0,69535.0,0.28233813]
[1718064167536,0.2502,69536.0,69535.0,0.34513813]
[1718064168404,0.2502,69536.0,69535.0,0.32513813]
[1718064169794,0.2502,69536.0,69535.0,0.34513813]
[1718064172467,0.2502,69536.0,69535.0,0.32513813]
[1718064174687,0.2502,69536.0,69535.0,0.34513813]
[1718064178533,0.0086,69536.0,69535.0,0.63276213]
[1718064178742,0.0086,69536.0,69535.0,1.00914637]
[1718064178921,0.0086,69536.0,69535.0,0.99838613]
[1718064181358,0.0086,69536.0,69535.0,0.92038613]
[1718064186097,0.0086,69536.0,69535.0,1.02038613]
[1718064186996,0.0086,69536.0,69535.0,1.03038613]
[1718064187225,0.0086,69536.0,69535.0,1.17470606]
[1718064187451,0.0086,69536.0,69535.0,1.46233006]
[1718064187966,0.0086,69536.0,69535.0,1.50526912]
[1718064188561,0.0086,69536.0,69535.0,1.46233006]
[1718064189270,0.0086,69536.0,69535.0,1.45233006]
[1718064189616,0.0086,69536.0,69535.0,1.46233006]
[1718064190912,0.00861,69537.0,69536.0,1.11807]
[1718064191125,0.00861,69537.0,69536.0,1.41530679]
[1718064191351,0.00861,69537.0,69536.0,1.69204364]
[1718064192017,0.00861,69537.0,69536.0,1.71351317]
[1718064192469,0.00861,69537.0,69536.0,1.62763505]
[1718064193387,0.00861,69537.0,69536.0,1.69197384]
[1718064193603,0.00861,69537.0,69536.0,1.9901721]
[1718064196316,0.00861,69537.0,69536.0,1.99016834]
[1718064197090,0.00861,69537.0,69536.0,1.99016833]
[1718064197295,0.00861,69537.0,69536.0,1.99015092]
[1718064197457,0.00861,69537.0,69536.0,1.99015768]
[1718064201548,0.00861,69537.0,69536.0,1.99014899]
[1718064202290,0.00861,69537.0,69536.0,1.92582761]
[1718064202728,0.00861,69537.0,69536.0,1.9258286]
[1718064202933,0.00861,69537.0,69536.0,1.99015007]
[1718064203137,0.00861,69537.0,69536.0,1.9258286]
[1718064204454,0.00861,69537.0,69536.0,1.7645286]
[1718064205066,0.00861,69537.0,69536.0,1.85029044]
[1718064205273,0.00861,69537.0,69536.0,1.85028413]
[1718064205836,0.00861,69537.0,69536.0,1.55209689]
[1718064206041,0.00861,69537.0,69536.0,1.85028407]
[1718064206234,0.00861,69537.0,69536.0,1.76452223]
[1718064206439,0.00861,69537.0,69536.0,1.85030494]
[1718064206931,0.00861,69537.0,69536.0,1.85030541]
[1718064207147,0.00861,69537.0,69536.0,1.85030544]
[1718064211211,0.00861,69537.0,69536.0,1.77480544]
[1718064212267,0.00861,69537.0,69536.0,1.798593]
[1718064213450,0.16961,69545.0,69544.0,0.738967]
[1718064213649,0.16961,69545.0,69544.0,1.21829821]
[1718064213864,0.16961,69545.0,69544.0,1.50588521]
[1718064215303,0.16961,69545.0,69544.0,1.44308521]
[1718064215535,0.16961,69545.0,69544.0,1.50588521]
[1718064222634,0.16961,69545.0,69544.0,1.5804334]
[1718064223891,0.00861,69545.0,69544.0,1.5804334]
[1718064224095,0.00861,69545.0,69544.0,1.63335043]
[1718064224304,0.00861,69545.0,69544.0,1.65480895]
[1718064224507,0.00861,69545.0,69544.0,1.64480895]
[1718064225415,0.00861,69545.0,69544.0,1.59200895]
[1718064225587,0.00861,69545.0,69544.0,1.65480895]
[1718064226248,0.00861,69545.0,69544.0,1.64480895]
[1718064226479,0.00861,69545.0,69544.0,1.69005757]
[1718064226696,0.00861,69545.0,69544.0,1.5414235]
[1718064226901,0.00861,69545.0,69544.0,1.70008108]
[1718064227059,0.00861,69545.0,69544.0,1.69008108]
[1718064227275,0.00861,69545.0,69544.0,1.6042235]
[1718064228123,0.00861,69545.0,69544.0,1.6142235]
[1718064228549,0.00861,69545.0,69544.0,1.6042235]
[1718064228902,0.00861,69545.0,69544.0,1.60421744]
[1718064229545,0.00861,69545.0,69544.0,1.60419996]
[1718064230486,0.2394,69551.0,69550.0,0.718905]
[1718064230689,0.2394,69551.0,69550.0,1.2927504]
[1718064230899,0.2394,69551.0,69550.0,1.5803124]
[1718064231477,0.2394,69551.0,69550.0,1.6232298]
[1718064232379,0.2394,69551.0,69550.0,1.5803124]
[1718064232604,0.2394,69551.0,69550.0,1.6232298]
[1718064232965,0.2394,69551.0,69550.0,1.54868767]
[1718064233180,0.2394,69551.0,69550.0,1.6232298]
[1718064235346,0.2394,69551.0,69550.0,1.5604298]
[1718064235557,0.2394,69551.0,69550.0,1.6232298]
[1718064236301,0.2394,69551.0,69550.0,1.5803124]
[1718064238317,0.2394,69551.0,69550.0,1.6232498]
[1718064239546,0.24026,69551.0,69550.0,1.6232498]
[1718064240575,0.24026,69551.0,69550.0,1.5803124]
[1718064241384,0.24026,69551.0,69550.0,1.2821422]
[1718064241626,0.24026,69551.0,69550.0,1.58031243]
[1718064242263,0.24026,69551.0,69550.0,1.62324833]
[1718064245108,0.14026,69551.0,69550.0,1.62324833]
[1718064245794,0.14026,69551.0,69550.0,1.51751242]
[1718064246010,0.14026,69551.0,69550.0,1.58031242]
[1718064246448,0.14026,69551.0,69550.0,1.50577029]
[1718064246664,0.14026,69551.0,69550.0,1.58031517]
[1718064247487,0.14026,69551.0,69550.0,1.6232555]
[1718064250116,0.04026,69551.0,69550.0,1.6232555]
[1718064250522,0.04026,69551.0,69550.0,1.5604555]
[1718064250697,0.04026,69551.0,69550.0,1.6232555]
[1718064251104,0.04026,69551.0,69550.0,1.62325882]
[1718064251904,0.04026,69551.0,69550.0,1.58031849]
[1718064252099,0.04026,69551.0,69550.0,1.62325882]
[1718064253123,0.20676,69551.0,69550.0,1.62325882]
[1718064253961,0.10676,69551.0,69550.0,1.62325882]
[1718064254893,0.10676,69551.0,69550.0,1.50577361]
[1718064255109,0.10676,69551.0,69550.0,1.62325904]
[1718064255538,0.10676,69551.0,69550.0,1.54871557]
[1718064255751,0.10676,69551.0,69550.0,1.62325904]
[1718064257027,0.10676,69551.0,69550.0,1.62326024]
[1718064258102,0.00676,69551.0,69550.0,1.62326149]
[1718064258705,0.00676,69551.0,69550.0,1.54871802]
[1718064258885,0.00676,69551.0,69550.0,1.77234937]
[1718064260623,0.00676,69551.0,69550.0,1.7723516]
[1718064261817,0.0751,69552.0,69550.0,1.7723516]
[1718064261818,0.0751,69552.0,69551.0,0.838895]
[1718064262019,0.0751,69552.0,69551.0,1.47879744]
[1718064262468,0.24631,69566.0,69565.0,0.16375]
[1718064262677,0.39062993,69566.0,69565.0,0.54827456]
[1718064263049,0.39062993,69566.0,69565.0,0.84642533]
[1718064263222,0.39062993,69566.0,69565.0,0.78362533]
[1718064264792,0.44441817,69566.0,69565.0,0.78362533]
[1718064265007,0.44441817,69566.0,69565.0,0.48547456]
[1718064265448,1.01941817,69566.0,69565.0,0.48547456]
[1718064265663,1.01941817,69566.0,69565.0,0.24172456]
[1718064265896,1.11941817,69566.0,69565.0,0.24172456]
[1718064266112,1.11941817,69566.0,69565.0,0.22363135]
[1718064266336,1.11941817,69566.0,69565.0,0.14908757]
[1718064266337,1.18406698,69566.0,69565.0,0.14908757]
[1718064266559,1.31941817,69566.0,69565.0,0.14908757]
[1718064267427,1.11941817,69566.0,69565.0,0.14908757]
[1718064267631,1.31941817,69566.0,69565.0,0.14908757]
[1718064267840,0.2,69561.0,69554.0,0.02149881]
[1718064268066,0.1522,69558.0,69555.0,0.22365097]
[1718064268326,0.95061993,69557.0,69556.0,0.34177347]
[1718064268526,0.95061993,69557.0,69556.0,0.24177347]
[1718064268732,0.95061993,69557.0,69556.0,0.34177347]
[1718064271219,0.95061993,69557.0,69556.0,0.40457347]
[1718064272418,0.95061993,69557.0,69556.0,0.70276544]
[1718064273764,0.95061993,69557.0,69556.0,0.70276565]
[1718064273959,0.95061993,69557.0,69556.0,0.40457347]
[1718064276489,0.95061993,69557.0,69556.0,0.40457076]
[1718064280524,0.95061993,69557.0,69556.0,0.34176534]
[1718064280971,0.95061993,69557.0,69556.0,0.6399571]
[1718064282291,0.95061993,69557.0,69556.0,0.63995689]
[1718064284332,0.95061993,69557.0,69556.0,0.56540928]
[1718064284547,0.575,69557.0,69556.0,0.63995679]
[1718064284965,0.575,69557.0,69556.0,0.34176503]
[1718064285202,0.575,69557.0,69556.0,0.63995679]
[1718064285457,0.8119,69557.0,69556.0,0.34176503]
[1718064289759,0.8119,69557.0,69556.0,0.19267001]
[1718064290002,0.8119,69557.0,69556.0,0.24176557]
[1718064290204,0.8119,69557.0,69556.0,0.34176557]
[1718064291467,0.8119,69557.0,69556.0,0.34176568]
[1718064293278,0.8119,69557.0,69556.0,0.63995873]
[1718064294061,0.8119,69557.0,69556.0,0.66145364]
[1718064295123,0.8119,69557.0,69556.0,0.63995873]
[1718064296317,0.8119,69557.0,69556.0,0.78372773]
[1718064299973,0.8119,69557.0,69556.0,0.63463206]
[1718064300180,0.8119,69557.0,69556.0,0.78372783]
[1718064301691,0.6564,69557.0,69556.0,0.78372783]
[1718064305106,0.6564,69557.0,69556.0,0.78372801]
[1718064306401,0.6564,69557.0,69556.0,0.80522399]
[1718064306613,0.65726,69557.0,69556.0,0.78372801]
[1718064306827,0.65726,69557.0,69556.0,0.80522392]
[1718064307490,0.65726,69557.0,69556.0,0.78372801]
[1718064308078,0.65726,69557.0,69556.0,0.63463224]
[1718064310928,0.65726,69557.0,69556.0,0.33643901]
[1718064311364,0.65726,69557.0,69556.0,0.63463316]
[1718064313459,0.65726,69557.0,69556.0,0.63463403]
[1718064319156,0.65726,69557.0,69556.0,0.09267088]
[1718064319157,1.06179105,69557.0,69556.0,0.09267088]
[1718064319383,1.38927359,69557.0,69556.0,0.07454838]
[1718064319600,0.7155,69552.0,69551.0,0.100946]
[1718064319814,1.31289418,69552.0,69551.0,0.100946]
[1718064320229,1.06648764,69552.0,69551.0,0.11730164]
[1718064320434,0.99431993,69552.0,69551.0,0.11730164]
[1718064320778,0.99431993,69552.0,69551.0,0.100946]
[1718064327551,1.19431993,69552.0,69551.0,0.100946]
[1718064327786,1.35501993,69552.0,69551.0,0.100946]
[1718064328195,1.15501993,69552.0,69551.0,0.100946]
[1718064328399,1.35501993,69552.0,69551.0,0.100946]
[1718064329054,1.49933986,69552.0,69551.0,0.100946]
[1718064329270,1.44311686,69552.0,69551.0,0.100946]
[1718064329478,1.64311686,69552.0,69551.0,0.100946]
[1718064341828,1.64397686,69552.0,69551.0,0.100946]
[1718064347514,1.71623789,69552.0,69551.0,0.100946]
[1718064354871,1.71626462,69552.0,69551.0,0.100946]
[1718064359025,2.3822975,69552.0,69551.0,0.100946]
[1718064359240,2.40381395,69552.0,69551.0,0.100946]
[1718064359488,2.74393393,69552.0,69551.0,0.100946]
[1718064361618,2.94542216,69552.0,69551.0,0.100946]
[1718064361835,3.09710928,69552.0,69551.0,0.100946]
[1718064362057,2.98952706,69552.0,69551.0,0.100946]
[1718064363048,3.42838106,69552.0,69551.0,0.100946]
[1718064363255,3.60196582,69552.0,69551.0,0.100946]
[1718064363497,4.20406117,69552.0,69551.0,0.100946]
[1718064363722,4.20506117,69552.0,69551.0,0.100946]
[1718064363959,4.20406117,69552.0,69551.0,0.100946]
[1718064364186,4.15995627,69552.0,69551.0,0.100946]
[1718064364887,4.16495627,69552.0,69551.0,0.100946]
[1718064365568,4.16695627,69552.0,69551.0,0.100946]
[1718064365804,4.16495627,69552.0,69551.0,0.100946]
[1718064366295,4.16643706,69552.0,69551.0,0.100946]
[1718064366708,4.00477633,69552.0,69551.0,0.100946]
[1718064366910,4.16643706,69552.0,69551.0,0.100946]
[1718064367316,4.1004184,69552.0,69551.0,0.100946]
[1718064368191,3.17396016,69552.0,69551.0,0.100946]
[1718064368421,3.65425985,69552.0,69551.0,0.100946]
[1718064368768,4.16319173,69552.0,69551.0,0.100946]
[1718064370448,4.07343083,69552.0,69551.0,0.100946]
[1718064371306,4.2025116,69552.0,69551.0,0.100946]
[1718064372118,4.26318908,69552.0,69551.0,0.100946]
[1718064372261,4.55074308,69552.0,69551.0,0.100946]
[1718064372831,4.6167431,69552.0,69551.0,0.100946]
[1718064373599,4.55074308,69552.0,69551.0,0.100946]
[1718064374620,4.59001455,69552.0,69551.0,0.100946]
[1718064374827,4.14388267,69552.0,69551.0,0.100946]
[1718064375274,4.01485295,69552.0,69551.0,0.100946]
[1718064375857,4.14388267,69552.0,69551.0,0.100946]
[1718064376292,4.01485295,69552.0,69551.0,0.100946]
[1718064380165,4.01486251,69552.0,69551.0,0.100946]
[1718064382414,3.69619828,69552.0,69551.0,0.100946]
[1718064382587,4.01486251,69552.0,69551.0,0.100946]
[1718064383431,4.01513998,69552.0,69551.0,0.100946]
[1718064384868,3.95233998,69552.0,69551.0,0.100946]
[1718064385117,4.01513998,69552.0,69551.0,0.100946]
[1718064385631,3.87163998,69552.0,69551.0,0.100946]
[1718064385851,3.93443998,69552.0,69551.0,0.100946]
[1718064386199,3.89401535,69552.0,69551.0,0.100946]
[1718064386401,3.88181535,69552.0,69551.0,0.100946]
[1718064386602,3.81901535,69552.0,69551.0,0.100946]
[1718064386851,3.88181535,69552.0,69551.0,0.100946]
[1718064387072,3.20016135,69552.0,69551.0,0.100946]
[1718064387295,3.03240735,69552.0,69551.0,0.100946]
[1718064387513,3.03240735,69552.0,69551.0,0.343546]
[1718064387514,2.1377328,69552.0,69551.0,0.343546]
[1718064387721,2.26588003,69552.0,69551.0,0.343546]
[1718064387944,2.50630528,69552.0,69551.0,0.343546]
[1718064388155,2.11575693,69552.0,69551.0,0.100946]
[1718064388390,2.26007686,69552.0,69551.0,0.100946]
[1718064388624,2.61149257,69552.0,69551.0,0.100946]
[1718064388835,2.89904657,69552.0,69551.0,0.100946]
[1718064389047,3.07785448,69552.0,69551.0,0.100946]
[1718064389250,3.10590033,69552.0,69551.0,0.100946]
[1718064390110,3.11090033,69552.0,69551.0,0.100946]
[1718064390318,3.11590033,69552.0,69551.0,0.100946]
[1718064391026,2.93309242,69552.0,69551.0,0.100946]
[1718064391381,3.01910507,69552.0,69551.0,0.100946]
[1718064391594,3.01305928,69552.0,69551.0,0.100946]
[1718064394073,2.99068604,69552.0,69551.0,0.100946]
[1718064394272,2.90467339,69552.0,69551.0,0.100946]
[1718064394483,2.92704662,69552.0,69551.0,0.100946]
[1718064396353,3.0345257,69552.0,69551.0,0.100946]
[1718064397207,3.00218282,69552.0,69551.0,0.100946]
[1718064397457,3.0346063,69552.0,69551.0,0.100946]
[1718064397692,3.00233193,69552.0,69551.0,0.100946]
[1718064398316,2.93953193,69552.0,69551.0,0.100946]
[1718064398576,3.00233193,69552.0,69551.0,0.100946]
[1718064399007,3.00235063,69552.0,69551.0,0.100946]
[1718064399434,2.9799774,69552.0,69551.0,0.100946]
[1718064399701,3.00235173,69552.0,69551.0,0.100946]
[1718064400897,2.80235173,69552.0,69551.0,0.100946]
[1718064401094,3.00235173,69552.0,69551.0,0.100946]
[1718064402085,2.93955173,69552.0,69551.0,0.100946]
[1718064402289,3.00235173,69552.0,69551.0,0.100946]
[1718064404343,3.13146436,69552.0,69551.0,0.100946]
[1718064404539,3.06866436,69552.0,69551.0,0.100946]
[1718064404895,3.13146436,69552.0,69551.0,0.100946]
[1718064406167,3.41901836,69552.0,69551.0,0.100946]
[1718064406991,3.57031836,69552.0,69551.0,0.100946]
[1718064407205,3.87020619,69552.0,69551.0,0.100946]
[1718064407418,4.09382143,69552.0,69551.0,0.100946]
[1718064407633,4.23907314,69552.0,69551.0,0.100946]
[1718064408257,4.0714471,69552.0,69551.0,0.100946]
[1718064408954,3.99614502,69552.0,69551.0,0.100946]
[1718064409172,4.06845407,69552.0,69551.0,0.100946]
[1718064409620,4.06826795,69552.0,69551.0,0.100946]
[1718064410268,4.11258788,69552.0,69551.0,0.100946]
[1718064410477,4.25803198,69552.0,69551.0,0.100946]
[1718064411092,4.2533529,69552.0,69551.0,0.100946]
[1718064411266,4.1079088,69552.0,69551.0,0.100946]
[1718064411486,4.1129088,69552.0,69551.0,0.100946]
[1718064411654,4.1229088,69552.0,69551.0,0.100946]
[1718064412266,4.10958085,69552.0,69551.0,0.100946]
[1718064412442,4.12379835,69552.0,69551.0,0.100946]
[1718064412869,4.06099835,69552.0,69551.0,0.100946]
[1718064413068,4.12379835,69552.0,69551.0,0.100946]
[1718064413863,4.02379835,69552.0,69551.0,0.100946]
[1718064415142,3.96099835,69552.0,69551.0,0.100946]
[1718064415350,4.02379835,69552.0,69551.0,0.100946]
[1718064415762,3.18553753,69552.0,69551.0,0.100946]
[1718064415969,3.5776663,69552.0,69551.0,0.100946]
[1718064416134,4.02380177,69552.0,69551.0,0.100946]
[1718064416949,3.92380177,69552.0,69551.0,0.100946]
[1718064419281,4.21135577,69552.0,69551.0,0.100946]
[1718064419548,4.25678835,69552.0,69551.0,0.100946]